fUST/lending_fUST_20251230
["ID","MTS","AMOUNT","RATE_DAILY","PERIOD"]
[400054792,1767054647312,-19897.29820933,0.0002465,2]
[400054793,1767054647322,-1185.68095469,0.00024657,2]
[400054794,1767054647332,-200.0,0.00024657,2]
[400054795,1767054647342,-500.0,0.00024657,2]
[400054796,1767054647352,-893.04,0.00024657,2]
[400054797,1767054647361,-500.0,0.00024657,2]
[400054798,1767054647370,-500.0,0.00024657,2]
[400054799,1767054647379,-502.9,0.00024657,2]
[400054800,1767054647389,-4821.6,0.00024657,2]
[400054801,1767054647399,-680.8,0.00024657,2]
[400054802,1767054647408,-501.1,0.00024657,2]
[400054803,1767054647417,-878.29,0.00024657,2]
[400054804,1767054647427,-500.0,0.00024657,2]
[400054805,1767054647436,-994.31,0.00024657,2]
[400054806,1767054647445,-500.0,0.00024657,2]
[400054807,1767054647455,-380.0,0.00024658,2]
[400054808,1767054647466,-12494.59,0.000247,2]
[400054809,1767054647476,-27103.06,0.000247,3]
[400054810,1767054647485,-151.0,0.000247,7]
[400054811,1767054647495,-151.0,0.000247,7]
[400054812,1767054647505,-151.0,0.000247,7]
[400054813,1767054647515,-965.69768192,0.00024709,2]
[400054814,1767054647610,-965.69768192,0.0002477,2]
[400054815,1767054647621,-17116.9430096,0.000248,2]
[400054816,1767054647631,-965.69768192,0.00024831,2]
[400054817,1767054647641,-609352.390088,0.000249,2]
[400054818,1767054647651,-1185.68095469,0.00024931,2]
[400054819,1767054647661,-200.0,0.00024931,2]
[400054820,1767054647670,-500.0,0.00024931,2]
[400054821,1767054647680,-893.04,0.00024931,2]
[400054822,1767054647690,-186.30778711,0.00024931,2]
[400054823,1767054647701,-500.0,0.00024931,2]
[400054824,1767054647711,-502.9,0.00024931,2]
[400054825,1767054647720,-4821.6,0.00024931,2]
[400054826,1767054647730,-680.8,0.00024931,2]
[400054827,1767054647740,-501.1,0.00024931,2]
[400054828,1767054647749,-878.29,0.00024931,2]
[400054829,1767054647758,-500.0,0.00024931,2]
[400054830,1767054647768,-994.31,0.00024931,2]
[400054831,1767054647777,-500.0,0.00024931,2]
[400054832,1767054647787,-10389.7771054,0.00025,2]
[400054833,1767054647796,-224922.2462527,0.00025,15]
[400054834,1767054647805,-1084.21998791,0.00025,2]
[400054835,1767054647815,-11292.60278474,0.00025,2]
[400054836,1767054647825,-2671.53609516,0.00025,2]
[400054837,1767054647835,-10364.0,0.00025,2]
[400054838,1767054647845,-500.0,0.00025,2]
[400054839,1767054647854,-1123.0,0.00025,5]
[400054840,1767054647864,-124724.23692222,0.00025,2]
[400054841,1767054647874,-262.001019,0.00025,7]
[400054842,1767054647885,-151.0,0.00025,7]
[400054843,1767054647897,-151.0,0.00025,7]
[400054844,1767054647907,-151.0,0.00025,7]
[400054845,1767054647916,-151.0,0.00025,7]
[400054846,1767054647926,-2373.129759,0.00025,7]
[400054847,1767054647936,-2373.129759,0.00025,7]
[400054848,1767054647946,-2373.129759,0.00025,7]
[400054849,1767054647956,-2373.129759,0.00025,7]
[400054850,1767054647966,-151.0,0.00025,7]
[400054851,1767054647976,-157.035377,0.00025,7]
[400054852,1767054647985,-251.745364,0.00025,7]
[400054853,1767054647995,-151.0,0.00025,7]
[400054854,1767054648006,-161.07266942,0.00025069,2]
[400054855,1767054648017,-500.0,0.00025069,2]
[400054856,1767054648027,-579.43217325,0.000252,5]
[400054857,1767054648036,-1185.68095469,0.00025205,2]
[400054858,1767054648046,-200.0,0.00025205,2]
[400054859,1767054648055,-500.0,0.00025205,2]
[400054860,1767054648065,-893.04,0.00025205,2]
[400054861,1767054648075,-500.0,0.00025205,2]
[400054862,1767054648084,-502.9,0.00025205,2]
[400054863,1767054648095,-4821.6,0.00025205,2]
[400054864,1767054648104,-680.8,0.00025205,2]
[400054865,1767054648114,-501.1,0.00025205,2]
[400054866,1767054648124,-878.29,0.00025205,2]
[400054867,1767054648133,-500.0,0.00025205,2]
[400054868,1767054648143,-994.31,0.00025205,2]
[400054869,1767054648153,-500.0,0.00025205,2]
[400054870,1767054648162,-250.0,0.00025205,2]
[400054871,1767054648172,-500.0,0.00025206,2]
[400054872,1767054648182,-312.0,0.00025227,2]
[400054873,1767054648192,-160.0,0.0002526,16]
[400054874,1767054648202,-15277.58765547,0.00025298,2]
[400054875,1767054648212,-241.032427,0.00025342,2]
[400054876,1767054648222,-500.0,0.00025343,2]
[400054877,1767054648232,-2000.0,0.00025455,7]
[400054878,1767054648241,-900.0,0.00025469,3]
[400054879,1767054648252,-1185.68095469,0.00025479,2]
[400054880,1767054648262,-200.0,0.00025479,2]
[400054881,1767054648271,-500.0,0.00025479,2]
[400054882,1767054648281,-893.04,0.00025479,2]
[400054883,1767054648291,-500.0,0.00025479,2]
[400054884,1767054648300,-502.9,0.00025479,2]
[400054885,1767054648310,-4821.6,0.00025479,2]
[400054886,1767054648320,-680.8,0.00025479,2]
[400054887,1767054648330,-501.1,0.00025479,2]
[400054888,1767054648339,-878.29,0.00025479,2]
[400054889,1767054648349,-553.92230975,0.00025479,2]
[400054890,1767054648359,-994.31,0.00025479,2]
[400054891,1767054648369,-500.0,0.00025479,2]
[400054892,1767054648378,-500.0,0.0002548,2]
[400054893,1767054648388,-1000.0,0.000255,2]
[400054894,1767054648398,-321.5,0.00025572,2]
[400054895,1767054648408,-500.0,0.00025617,2]
[400054896,1767054648418,-1185.68095469,0.00025753,2]
[400054897,1767054648427,-310.65116714,0.00025753,2]
[400054898,1767054648437,-500.0,0.00025753,2]
[400054899,1767054648447,-893.04,0.00025753,2]
[400054900,1767054648457,-575.42732568,0.00025753,2]
[400054901,1767054648468,-502.9,0.00025753,2]
[400054902,1767054648477,-4821.6,0.00025753,2]
[400054903,1767054648487,-680.8,0.00025753,2]
[400054904,1767054648497,-501.1,0.00025753,2]
[400054905,1767054648507,-878.29,0.00025753,2]
[400054906,1767054648518,-994.31,0.00025753,2]
[400054907,1767054648527,-500.0,0.00025753,2]
[400054908,1767054648537,-350.0,0.00025753,2]
[400054909,1767054648546,-500.0,0.00025754,2]
[400054910,1767054648555,-500.0,0.00025891,2]
[400054911,1767054648565,-343.00028448,0.00026,2]
[400054912,1767054648575,-39739.93699728,0.00026,10]
[400054913,1767054648585,-529.2118122,0.00026,2]
[400054914,1767054648595,-19900.0,0.00026,2]
[400054915,1767054648605,-161.0,0.00026,5]
[400054916,1767054648615,-1041.66666667,0.00026,10]
[400054917,1767054648624,-500.0,0.00026027,2]
[400054918,1767054648634,-893.04,0.00026027,2]
[400054919,1767054648644,-502.9,0.00026027,2]
[400054920,1767054648654,-717.35019876,0.00026027,2]
[400054921,1767054648663,-4821.6,0.00026027,2]
[400054922,1767054648673,-680.8,0.00026027,2]
[400054923,1767054648683,-501.1,0.00026027,2]
[400054924,1767054648693,-878.29,0.00026027,2]
[400054925,1767054648702,-994.31,0.00026027,2]
[400054926,1767054648712,-500.0,0.00026027,2]
[400054927,1767054648722,-500.0,0.00026028,2]
[400054928,1767054648731,-1207.08,0.000261,7]
[400054929,1767054648741,-194.43438945,0.0002616,2]
[400054930,1767054648750,-500.0,0.00026165,2]
[400054931,1767054648760,-284.03,0.00026301,2]
[400054932,1767054648770,-893.04,0.00026301,2]
[400054933,1767054648779,-502.9,0.00026301,2]
[400054934,1767054648788,-717.35019876,0.00026301,2]
[400054935,1767054648798,-4821.6,0.00026301,2]
[400054936,1767054648808,-680.8,0.00026301,2]
[400054937,1767054648817,-501.1,0.00026301,2]
[400054938,1767054648826,-878.29,0.00026301,2]
[400054939,1767054648836,-994.31,0.00026301,2]
[400054940,1767054648846,-500.0,0.00026301,2]
[400054941,1767054648855,-450.0,0.00026301,2]
[400054942,1767054648864,-500.0,0.00026302,2]
[400054943,1767054648874,-558.89481464,0.00026439,2]
[400054944,1767054648887,-1802.09,0.000265,14]
[400054945,1767054648896,-893.04,0.00026575,2]
[400054946,1767054648906,-502.9,0.00026575,2]
[400054947,1767054648915,-717.35019876,0.00026575,2]
[400054948,1767054648926,-4821.6,0.00026575,2]
[400054949,1767054648935,-680.8,0.00026575,2]
[400054950,1767054648945,-501.1,0.00026575,2]
[400054951,1767054648954,-878.29,0.00026575,2]
[400054952,1767054648965,-994.31,0.00026575,2]
[400054953,1767054648974,-500.0,0.00026575,2]
[400054954,1767054648984,-500.0,0.00026671,2]
[400054955,1767054648993,-500.0,0.00026671,2]
[400054956,1767054649002,-151.0,0.00026671,2]
[400054957,1767054649012,-500.0,0.00026671,2]
[400054958,1767054649021,-151.0,0.00026671,2]
[400054959,1767054649033,-500.0,0.00026671,2]
[400054960,1767054649043,-183.83210402,0.00026671,2]
[400054961,1767054649052,-500.0,0.00026671,2]
[400054962,1767054649062,-500.0,0.00026671,2]
[400054963,1767054649071,-2398.4119403,0.00026671,2]
[400054964,1767054649080,-500.0,0.00026671,2]
[400054965,1767054649090,-500.0,0.00026671,2]
[400054966,1767054649099,-500.0,0.00026671,2]
[400054967,1767054649109,-500.0,0.00026671,2]
[400054968,1767054649118,-500.0,0.00026671,2]
[400054969,1767054649127,-500.0,0.00026671,2]
[400054970,1767054649137,-500.0,0.00026671,2]
[400054971,1767054649147,-500.0,0.00026671,2]
[400054972,1767054649156,-500.0,0.00026671,2]
[400054973,1767054649165,-496.47127164,0.00026671,2]
[400054974,1767054649175,-500.0,0.00026671,2]
[400054975,1767054649184,-893.04,0.00026849,2]
[400054976,1767054649194,-502.9,0.00026849,2]
[400054977,1767054649204,-717.35019876,0.00026849,2]
[400054978,1767054649214,-4821.6,0.00026849,2]
[400054979,1767054649224,-680.8,0.00026849,2]
[400054980,1767054649234,-501.1,0.00026849,2]
[400054981,1767054649243,-878.29,0.00026849,2]
[400054982,1767054649253,-994.31,0.00026849,2]
[400054983,1767054649262,-500.0,0.00026849,2]
[400054984,1767054649271,-550.0,0.00026849,2]
[400054985,1767054649280,-1024.67436269,0.00027,2]
[400054986,1767054649290,-15277.58765547,0.00027038,2]
[400054987,1767054649300,-321.5,0.0002708,2]
[400054988,1767054649309,-893.04,0.00027123,2]
[400054989,1767054649320,-502.9,0.00027123,2]
[400054990,1767054649329,-717.35019876,0.00027123,2]
[400054991,1767054649339,-4821.6,0.00027123,2]
[400054992,1767054649349,-680.8,0.00027123,2]
[400054993,1767054649359,-501.1,0.00027123,2]
[400054994,1767054649369,-878.29,0.00027123,2]
[400054995,1767054649379,-994.31,0.00027123,2]
[400054996,1767054649389,-500.0,0.00027123,2]
[400054997,1767054649399,-2487.15318209,0.00027219,2]
[400054998,1767054649408,-514.84070869,0.00027219,2]
[400054999,1767054649418,-339.0,0.00027227,2]
[400055000,1767054649428,-2000.0,0.00027273,7]
[400055001,1767054649438,-1181.68932168,0.00027346,2]
[400055002,1767054649447,-12667.999999,0.0002739,2]
[400055003,1767054649456,-568.69719342,0.0002739,7]
[400055004,1767054649467,-893.04,0.00027397,2]
[400055005,1767054649477,-502.9,0.00027397,2]
[400055006,1767054649486,-717.35019876,0.00027397,2]
[400055007,1767054649495,-4821.6,0.00027397,2]
[400055008,1767054649505,-199.19952446,0.00027397,2]
[400055009,1767054649514,-680.8,0.00027397,2]
[400055010,1767054649524,-501.1,0.00027397,2]
[400055011,1767054649534,-878.29,0.00027397,2]
[400055012,1767054649543,-994.31,0.00027397,2]
[400055013,1767054649552,-223.7001258,0.00027397,2]
[400055014,1767054649562,-500.0,0.00027397,2]
[400055015,1767054649571,-650.0,0.00027397,5]
[400055016,1767054649580,-300.0,0.00027397,2]
[400055017,1767054649590,-300.0,0.00027397,2]
[400055018,1767054649600,-300.0,0.00027397,2]
[400055019,1767054649609,-300.0,0.00027397,2]
[400055020,1767054649618,-300.0,0.00027397,2]
[400055021,1767054649628,-300.0,0.00027397,2]
[400055022,1767054649637,-300.0,0.00027397,2]
[400055023,1767054649647,-300.0,0.00027397,2]
[400055024,1767054649736,-300.0,0.00027397,2]
[400055025,1767054649746,-157.04098773,0.00027397,5]
[400055026,1767054649755,-45902.02051304,0.000275,2]
[400055027,1767054649765,-5000.0,0.00027641,15]
[400055028,1767054649774,-893.04,0.00027671,2]
[400055029,1767054649784,-502.9,0.00027671,2]
[400055030,1767054649793,-717.35019876,0.00027671,2]
[400055031,1767054649803,-4821.6,0.00027671,2]
[400055032,1767054649812,-680.8,0.00027671,2]
[400055033,1767054649822,-501.1,0.00027671,2]
[400055034,1767054649831,-878.29,0.00027671,2]
[400055035,1767054649841,-994.31,0.00027671,2]
[400055036,1767054649851,-462.88,0.00027671,2]
[400055037,1767054649860,-160.2,0.000277,7]
[400055038,1767054649869,-156.97,0.000277,7]
[400055039,1767054649879,-2579.17784983,0.00027767,2]
[400055040,1767054649890,-533.88981491,0.00027767,2]
[400055041,1767054649901,-1000.0,0.00027777,5]
[400055042,1767054649911,-893.04,0.00027945,2]
[400055043,1767054649921,-502.9,0.00027945,2]
[400055044,1767054649930,-717.35019876,0.00027945,2]
[400055045,1767054649940,-4821.6,0.00027945,2]
[400055046,1767054649950,-680.8,0.00027945,2]
[400055047,1767054649960,-501.1,0.00027945,2]
[400055048,1767054649970,-878.29,0.00027945,2]
[400055049,1767054649980,-994.31,0.00027945,2]
[400055050,1767054649990,-750.0,0.00027945,5]
[400055051,1767054650000,-250.0,0.00027945,5]
[400055052,1767054650010,-250.0,0.00027945,5]
[400055053,1767054650020,-200.0,0.00027999,10]
[400055054,1767054650029,-12494.59,0.00028,2]
[400055055,1767054650039,-15306.86273873,0.00028,2]
[400055056,1767054650049,-519.61844373,0.00028,2]
[400055057,1767054650058,-2003.22501658,0.00028,2]
[400055058,1767054650068,-1017.0,0.00028,2]
[400055059,1767054650077,-893.06635343,0.00028219,2]
[400055060,1767054650087,-502.91652745,0.00028219,2]
[400055061,1767054650097,-717.4701832,0.00028219,2]
[400055062,1767054650107,-4821.82605104,0.00028219,2]
[400055063,1767054650117,-680.91387103,0.00028219,2]
[400055064,1767054650127,-501.21245629,0.00028219,2]
[400055065,1767054650136,-878.42472606,0.00028219,2]
[400055066,1767054650146,-994.35737078,0.00028219,2]
[400055067,1767054650156,-1207.08,0.000283,7]
[400055068,1767054650165,-2674.60743027,0.00028315,2]
[400055069,1767054650175,-553.64373807,0.00028315,2]
[400055070,1767054650184,-2000.0,0.00028465,7]
[400055071,1767054650193,-2000.0,0.00028474,7]
[400055072,1767054650203,-687.49102572,0.00028474,2]
[400055073,1767054650213,-1237.4838463,0.00028474,2]
[400055074,1767054650222,-2199.97128231,0.00028474,2]
[400055075,1767054650232,-3437.45512861,0.00028474,2]
[400055076,1767054650242,-2000.0,0.00028482,7]
[400055077,1767054650251,-2000.0,0.00028491,7]
[400055078,1767054650261,-850.0,0.00028493,5]
[400055079,1767054650270,-350.0,0.00028493,5]
[400055080,1767054650280,-350.0,0.00028493,5]
[400055081,1767054650289,-2000.0,0.000285,7]
[400055082,1767054650298,-229692.19415498,0.000285,7]
[400055083,1767054650307,-382.63332871,0.000285,7]
[400055084,1767054650316,-191.55944874,0.00028509,2]
[400055085,1767054650325,-766.23779495,0.00028509,2]
[400055086,1767054650335,-1724.03503863,0.00028509,2]
[400055087,1767054650344,-3064.95117978,0.00028509,2]
[400055088,1767054650354,-4788.98621841,0.00028509,2]
[400055089,1767054650363,-6896.14015451,0.00028509,2]
[400055090,1767054650372,-321.5,0.00028588,3]
[400055091,1767054650382,-27103.06,0.000287,3]
[400055092,1767054650391,-151.0,0.000287,7]
[400055093,1767054650400,-3250.52834586,0.0002876,2]
[400055094,1767054650409,-19127.20405076,0.0002876,2]
[400055095,1767054650419,-500.0,0.00028767,7]
[400055096,1767054650429,-500.0,0.00028767,7]
[400055097,1767054650438,-500.0,0.00028767,7]
[400055098,1767054650447,-500.0,0.00028767,7]
[400055099,1767054650456,-500.0,0.00028767,7]
[400055100,1767054650467,-500.0,0.00028767,7]
[400055101,1767054650476,-500.0,0.00028767,7]
[400055102,1767054650485,-500.0,0.00028767,7]
[400055103,1767054650495,-500.0,0.00028767,7]
[400055104,1767054650504,-500.0,0.00028767,7]
[400055105,1767054650513,-500.0,0.00028767,7]
[400055106,1767054650522,-500.0,0.00028767,7]
[400055107,1767054650532,-500.0,0.00028767,7]
[400055108,1767054650551,-494.49773286,0.00028767,7]
[400055109,1767054650563,-241.032427,0.00028767,60]
[400055110,1767054650573,-500.0,0.00028773,30]
[400055111,1767054650584,-500.0,0.00028773,30]
[400055112,1767054650594,-481.64675475,0.00028773,30]
[400055113,1767054650605,-15277.58765547,0.00028778,2]
[400055114,1767054650615,-331727.08209784,0.000288,3]
[400055115,1767054650625,-172.31850849,0.000288,7]
[400055116,1767054650635,-151.0,0.000288,7]
[400055117,1767054650644,-151.0,0.000288,7]
[400055118,1767054650654,-2373.129759,0.000288,7]
[400055119,1767054650664,-2373.129759,0.000288,7]
[400055120,1767054650673,-2373.129759,0.000288,7]
[400055121,1767054650683,-2373.129759,0.000288,7]
[400055122,1767054650693,-158.06,0.000288,2]
[400055123,1767054650703,-574.12855637,0.00028863,2]
[400055124,1767054650712,-202.95469,0.00029,120]
[400055125,1767054650725,-1802.09,0.00029,14]
[400055126,1767054650734,-889.43525477,0.00029,2]
[400055127,1767054650744,-28339.10739475,0.00029,20]
[400055128,1767054650754,-2406.21476292,0.00029,10]
[400055129,1767054650763,-1017.0,0.00029,2]
[400055130,1767054650772,-1041.66666667,0.00029,7]
[400055131,1767054650782,-1041.66666667,0.00029,3]
[400055132,1767054650792,-158.06,0.00029,2]
[400055133,1767054650802,-950.0,0.00029041,5]
[400055134,1767054650812,-450.0,0.00029041,5]
[400055135,1767054650821,-450.0,0.00029041,5]
[400055136,1767054650831,-1683.62292202,0.00029091,7]
[400055137,1767054650990,-316.37707798,0.00029091,7]
[400055138,1767054651000,-155.0,0.00029096,32]
[400055139,1767054651009,-415.36916342,0.000291,2]
[400055140,1767054651020,-954.50930635,0.000291,2]
[400055141,1767054651032,-1008.19331332,0.000291,2]
[400055142,1767054651246,-3e-08,0.00021917,2]
[400055143,1767054651421,-182.03330596,0.00021917,2]
[400055144,1767054651430,-358.42368919,0.00021917,2]
[400055145,1767054651439,-212.21394697,0.00021917,2]
[400055146,1767054651616,-102.94162207,0.00021917,2]
[400055147,1767054651627,-1492.01444488,0.000291,2]
[400055148,1767054651636,-366.0,0.00029227,2]
[400055149,1767054651646,-158.06,0.000293,2]
[400055150,1767054651655,-701.64348825,0.00029374,15]
[400055151,1767054651666,-291.86447543,0.00029374,15]
[400055152,1767054767291,185.43,0.00013072,2]
[400055153,1767054784903,-300.0,0.00013176,2]
[400055154,1767054784928,-500.0,0.00013177,2]
[400055155,1767054784948,-500.0,0.00013177,2]
[400055156,1767054784973,-500.0,0.00013177,2]
[400055157,1767054784995,-168.6595281,0.00013177,2]
[400055158,1767054785017,-500.0,0.00013177,2]
[400055159,1767054785039,-500.0,0.00013177,2]
[400055160,1767054785060,-392.86775916,0.00013177,2]
[400055161,1767054785082,-500.0,0.00013177,2]
[400055162,1767054785104,-500.0,0.00013177,2]
[400055163,1767054785123,-500.0,0.00013177,2]
[400055164,1767054785146,-138.47271274,0.00013177,2]
[400055165,1767054847797,602.26,0.00013019,2]
[400055166,1767054856166,3474.17420444,0.00013172,2]
[400055167,1767054911648,-300.0,0.00013176,2]
[400055168,1767054911672,-48.20946918,0.00013176,2]
[400055169,1767054917469,-159.83644383,0.00013176,2]
[400055170,1767054920009,-91.95408699,0.00013176,2]
[400055171,1767054920034,-65.57349908,0.00013176,2]
[400055172,1767054922686,5093.94789607,0.000131,2]
[400055173,1767054925878,-213.57254607,0.00013176,2]
[400055174,1767054928520,599.21,0.0001305,2]
[400055175,1767054930617,-286.42745393,0.00013176,2]
[400055176,1767054930639,-130.1779348,0.00013176,2]
[400055177,1767054931149,-113.09910103,0.00013176,2]
[400055178,1767054931174,-400.18511582,0.00013176,2]
[400055179,1767054931196,-500.0,0.00013176,2]
[400055180,1767054931219,-500.0,0.00013176,2]
[400055181,1767054931242,-486.71578315,0.00013176,2]
[400055182,1767054933180,-13.28421685,0.00013176,2]
[400055183,1767054933208,-431.97597654,0.00013176,2]
[400055184,1767054937301,-68.02402346,0.00013176,2]
[400055185,1767054937324,-169.97022059,0.00013176,2]
[400055186,1767054941304,-200.63699213,0.00013176,2]
[400055187,1767054943008,-129.39278728,0.00013176,2]
[400055188,1767054943033,-104.25426447,0.00013176,2]
[400055189,1767054945570,-300.0,0.00013176,2]
[400055190,1767054947116,-95.74573553,0.00013176,2]
[400055191,1767054947139,-479.76843116,0.00013176,2]
[400055192,1767054972365,-288.76688686,0.00013175,2]
[400055193,1767054975467,-11.23311314,0.00013175,2]
[400055194,1767054975488,-500.0,0.00013176,2]
[400055195,1767054975510,-500.0,0.00013176,2]
[400055196,1767054975531,-500.0,0.00013176,2]
[400055197,1767054975553,-500.0,0.00013176,2]
[400055198,1767054975711,-500.0,0.00013176,2]
[400055199,1767054975734,-500.0,0.00013176,2]
[400055200,1767054975755,-500.0,0.00013176,2]
[400055201,1767054975776,-500.0,0.00013176,2]
[400055202,1767054975797,-500.0,0.00013176,2]
[400055203,1767054975819,-488.76688686,0.00013176,2]
[400055204,1767054999710,2338.3555009,0.00013076,2]
[400055205,1767055000374,-307.01532612,0.00013175,2]
[400055206,1767055003059,-192.98467388,0.00013175,2]
[400055207,1767055003082,-190.34432457,0.00013175,2]
[400055208,1767055003105,-86.41100155,0.00013175,2]
[400055209,1767055008741,593.62,0.00013044,2]
[400055210,1767055013342,5000.0,0.00013172,2]
[400055223,1767055080186,209.14,9.99e-05,2]
[400055224,1767055080687,163.96,9.99e-05,2]
[400055225,1767055087806,592.05,0.00013025,2]
[400055226,1767055170287,584.51,0.00013039,2]
[400055227,1767055172314,161.07266942,0.00012903,2]
[400055228,1767055211631,-300.0,0.00013173,2]
[400055229,1767055211652,-23.10328849,0.00013173,2]
[400055230,1767055214244,-276.89671151,0.00013173,2]
[400055231,1767055214266,-86.11161991,0.00013173,2]
[400055232,1767055217783,-182.85305154,0.00013173,2]
[400055233,1767055221342,-31.03532855,0.00013173,2]
[400055234,1767055221363,-169.20118282,0.00013173,2]
[400055235,1767055223655,-219.61038699,0.00013173,2]
[400055236,1767055225027,-169.32352975,0.00013173,2]
[400055237,1767055241729,-425.0781536,0.00013173,2]
[400055238,1767055245460,-74.9218464,0.00013173,2]
[400055239,1767055245489,-285.7295042,0.00013173,2]
[400055240,1767055247445,-214.2704958,0.00013173,2]
[400055241,1767055247469,-273.65101122,0.00013173,2]
[400055242,1767055250678,577.07,0.00013028,2]
[400055243,1767055250900,-226.34898878,0.00013173,2]
[400055244,1767055250925,-23.41349727,0.00013173,2]
[400055245,1767055252607,-453.63343476,0.00013173,2]
[400055246,1767055254738,-22.95306797,0.00013173,2]
[400055247,1767055254761,-376.39635194,0.00013173,2]
[400055248,1767055260057,-118.90500455,0.00013173,2]
[400055249,1767055260080,-38.74968609,0.00013173,2]
[400055250,1767055262291,300.0,0.00013172,2]
[400055251,1767055262761,-130.13661134,0.00013173,2]
[400055252,1767055262785,-51.58037503,0.00013173,2]
[400055253,1767055262903,4102.70502015,0.000131,2]
[400055254,1767055264261,-256.22708129,0.00013173,2]
[400055255,1767055265770,-192.19254368,0.00013173,2]
[400055256,1767055265795,-270.0826866,0.00013173,2]
[400055257,1767055267877,-229.9173134,0.00013173,2]
[400055258,1767055267900,-128.60931875,0.00013173,2]
[400055259,1767055269993,-371.39068125,0.00013173,2]
[400055260,1767055270018,-76.70320646,0.00013173,2]
[400055261,1767055272225,-158.01910415,0.00013173,2]
[400055262,1767055278315,-237.30351651,0.00013173,2]
[400055263,1767055279825,-27.97417288,0.00013173,2]
[400055264,1767055279849,-205.93033283,0.00013173,2]
[400055265,1767055280340,2046.06106334,0.00013073,2]
[400055266,1767055285071,-232.30181117,0.00013173,2]
[400055267,1767055286559,-61.767856,0.00013173,2]
[400055268,1767055286585,-116.16431354,0.00013173,2]
[400055269,1767055289181,-348.22253054,0.00013173,2]
[400055270,1767055294637,-35.61315592,0.00013173,2]
[400055271,1767055294666,-231.25075988,0.00013173,2]
[400055272,1767055301642,-268.74924012,0.00013173,2]
[400055273,1767055301669,-101.39887252,0.00013173,2]
[400055274,1767055303668,-298.7,0.00013173,2]
[400055275,1767055304297,163.462,0.00012914,2]
[400055276,1767055306578,-99.90112748,0.00013173,2]
[400055277,1767055306601,-65.20262571,0.00013173,2]
[400055278,1767055309506,-164.68115594,0.00013173,2]
[400055279,1767055312244,-270.11621835,0.00013173,2]
[400055280,1767055312267,-75.96738967,0.00013173,2]
[400055281,1767055314362,-163.69870296,0.00013173,2]
[400055282,1767055318705,-260.33390737,0.00013173,2]
[400055283,1767055318729,-9.50644185,0.00013173,2]
[400055284,1767055320100,-151.3,0.00013173,2]
[400055285,1767055322257,300.0,0.00013172,2]
[400055286,1767055322645,-339.19355815,0.00013173,2]
[400055287,1767055322669,-10.74869554,0.00013173,2]
[400055288,1767055324858,-207.60776585,0.00013173,2]
[400055289,1767055327547,-183.49966263,0.00013173,2]
[400055290,1767055329164,-98.14387598,0.00013173,2]
[400055291,1767055329190,-154.50220062,0.00013173,2]
[400055292,1767055330793,-345.49779938,0.00013173,2]
[400055293,1767055330814,-154.50220062,0.00013173,2]
[400055294,1767055331681,569.73,0.00013034,2]
[400055295,1767055333400,-345.49779938,0.00013173,2]
[400055296,1767055333424,-223.59571267,0.00013173,2]
[400055297,1767055336568,-276.40428733,0.00013173,2]
[400055298,1767055336594,-78.96452072,0.00013173,2]
[400055299,1767055337952,-452.46709458,0.00013173,2]
[400055300,1767055337975,-47.53290542,0.00013173,2]
[400055301,1767055339519,-181.07643522,0.00013173,2]
[400055302,1767055342695,-271.39065936,0.00013173,2]
[400055303,1767055342718,-112.9511341,0.00013173,2]